[Event "Titled Tuesday Blitz June 20 Late 2023"]
[White "Dmitriev, Sergey"]
[Black "Yeritsyan, Hayk"]
[WhiteFideId "14101785"]
[BlackFideId "13307320"]
[WhiteElo "2132"]
[BlackElo "2459"]
[Result "0-1"]
[Round "3"]
[TimeControl "180+2"]
[Date "2023.06.20"]
[WhiteClock "0:01:12"]
[BlackClock "0:01:33"]
[Board "151"]

1. d4 {[%clk 0:03:00]}  d5 {[%clk 0:02:59]} 2. Nf3 {[%clk 0:03:00]}  Nf6 {[%clk 0:02:59]} 3. Bf4 {[%clk 0:02:59]}  c6 {[%clk 0:02:59]} 4. e3 {[%clk 0:02:59]}  Bg4 {[%clk 0:02:58]} 5. h3 {[%clk 0:02:59]}  Bxf3 {[%clk 0:02:58]} 6. Qxf3 {[%clk 0:02:58]}  e6 {[%clk 0:02:59]} 7. Nd2 {[%clk 0:02:56]}  Bd6 {[%clk 0:02:59]} 8. Bxd6 {[%clk 0:02:53]}  Qxd6 {[%clk 0:03:00]} 9. Bd3 {[%clk 0:02:51]}  Nbd7 {[%clk 0:03:01]} 10. c3 {[%clk 0:02:50]}  e5 {[%clk 0:03:01]} 11. dxe5 {[%clk 0:02:45]}  Nxe5 {[%clk 0:03:02]} 12. Qe2 {[%clk 0:02:45]}  O-O {[%clk 0:03:00]} 13. Bc2 {[%clk 0:02:43]}  Rfe8 {[%clk 0:02:59]} 14. O-O {[%clk 0:02:43]}  Rad8 {[%clk 0:02:56]} 15. Nf3 {[%clk 0:02:42]}  Nxf3+ {[%clk 0:02:53]} 16. Qxf3 {[%clk 0:02:41]}  a6 {[%clk 0:02:54]} 17. Rad1 {[%clk 0:02:38]}  Qe5 {[%clk 0:02:52]} 18. Rfe1 {[%clk 0:02:36]}  Ne4 {[%clk 0:02:50]} 19. Bxe4 {[%clk 0:02:32]}  dxe4 {[%clk 0:02:50]} 20. Qe2 {[%clk 0:02:30]}  Qe6 {[%clk 0:02:46]} 21. b3 {[%clk 0:02:28]}  g6 {[%clk 0:02:39]} 22. Rxd8 {[%clk 0:02:27]}  Rxd8 {[%clk 0:02:39]} 23. Rd1 {[%clk 0:02:27]}  Rd5 {[%clk 0:02:37]} 24. Rd4 {[%clk 0:02:20]}  c5 {[%clk 0:02:36]} 25. Rd2 {[%clk 0:02:16]}  Qd6 {[%clk 0:02:35]} 26. Rxd5 {[%clk 0:02:10]}  Qxd5 {[%clk 0:02:35]} 27. Kf1 {[%clk 0:02:08]}  b5 {[%clk 0:02:35]} 28. Ke1 {[%clk 0:02:09]}  c4 {[%clk 0:02:35]} 29. Qd2 {[%clk 0:02:06]}  Qd3 {[%clk 0:02:34]} 30. bxc4 {[%clk 0:01:54]}  bxc4 {[%clk 0:02:28]} 31. Qb2 {[%clk 0:01:52]}  Kg7 {[%clk 0:02:24]} 32. g3 {[%clk 0:01:44]}  h5 {[%clk 0:02:22]} 33. h4 {[%clk 0:01:44]}  a5 {[%clk 0:02:19]} 34. Qd2 {[%clk 0:01:43]}  Qb1+ {[%clk 0:02:08]} 35. Ke2 {[%clk 0:01:42]}  Qd3+ {[%clk 0:02:08]} 36. Ke1 {[%clk 0:01:42]}  a4 {[%clk 0:02:08]} 37. Qb2 {[%clk 0:01:40]}  Kf6 {[%clk 0:01:37]} 38. Qb6+ {[%clk 0:01:36]}  Kf5 {[%clk 0:01:37]} 39. Qc5+ {[%clk 0:01:34]}  Kg4 {[%clk 0:01:36]} 40. Qc8+ {[%clk 0:01:32]}  Kf3 {[%clk 0:01:36]} 41. Qc5 {[%clk 0:01:12]}  Qe2# {[%clk 0:01:33]} 0-1


[Site "https://www.chess.com"]

[Event "Titled Tuesday Blitz June 20 Late 2023"]
[White "Raja Rithvik R"]
[Black "Freile Martin, Javier"]
[WhiteFideId "35007394"]
[BlackFideId "3600165"]
[WhiteElo "2395"]
[BlackElo "2320"]
[Result "1-0"]
[Round "3"]
[TimeControl "180+2"]
[Date "2023.06.20"]
[WhiteClock "0:01:27"]
[BlackClock "0:01:15"]
[Board "153"]

1. Nf3 {[%clk 0:03:00]}  Nf6 {[%clk 0:02:59]} 2. g3 {[%clk 0:03:01]}  g6 {[%clk 0:02:58]} 3. Bg2 {[%clk 0:03:02]}  Bg7 {[%clk 0:02:58]} 4. O-O {[%clk 0:03:03]}  d6 {[%clk 0:02:59]} 5. c4 {[%clk 0:03:04]}  O-O {[%clk 0:02:58]} 6. d4 {[%clk 0:03:05]}  Bf5 {[%clk 0:02:55]} 7. Nc3 {[%clk 0:03:06]}  Ne4 {[%clk 0:02:55]} 8. Qb3 {[%clk 0:03:06]}  Nxc3 {[%clk 0:02:52]} 9. bxc3 {[%clk 0:03:07]}  Nc6 {[%clk 0:02:42]} 10. Qxb7 {[%clk 0:03:03]}  Na5 {[%clk 0:02:41]} 11. Qb4 {[%clk 0:02:51]}  c5 {[%clk 0:02:39]} 12. dxc5 {[%clk 0:02:51]}  dxc5 {[%clk 0:02:39]} 13. Qxc5 {[%clk 0:02:47]}  Rc8 {[%clk 0:02:38]} 14. Qxa7 {[%clk 0:02:41]}  Nxc4 {[%clk 0:02:23]} 15. Nd4 {[%clk 0:02:39]}  Bd7 {[%clk 0:02:13]} 16. Rd1 {[%clk 0:02:26]}  Rc7 {[%clk 0:02:05]} 17. Qa6 {[%clk 0:02:26]}  Qb8 {[%clk 0:01:53]} 18. Bg5 {[%clk 0:02:07]}  e5 {[%clk 0:01:50]} 19. Rab1 {[%clk 0:02:05]}  exd4 {[%clk 0:01:37]} 20. Rxb8 {[%clk 0:02:04]}  Rxb8 {[%clk 0:01:37]} 21. cxd4 {[%clk 0:02:01]}  Bb5 {[%clk 0:01:35]} 22. Rb1 {[%clk 0:01:36]}  Rcb7 {[%clk 0:01:33]} 23. Qxb7 {[%clk 0:01:33]}  Rxb7 {[%clk 0:01:32]} 24. Bxb7 {[%clk 0:01:33]}  Na3 {[%clk 0:01:26]} 25. Rb3 {[%clk 0:01:28]}  Bf8 {[%clk 0:01:15]} 26. Bc1 {[%clk 0:01:27]} 1-0


[Site "https://www.chess.com"]

[Event "Titled Tuesday Blitz June 20 Late 2023"]
[White "Lin, Dachey"]
[Black "Rosenberg, Evan S"]
[WhiteFideId "2029650"]
[BlackFideId "2019299"]
[WhiteElo "2313"]
[BlackElo "2325"]
[Result "1-0"]
[Round "3"]
[TimeControl "180+2"]
[Date "2023.06.20"]
[WhiteClock "0:00:32"]
[BlackClock "0:00:06"]
[Board "154"]

1. Nf3 {[%clk 0:03:00]}  d5 {[%clk 0:02:59]} 2. e3 {[%clk 0:02:59]}  c5 {[%clk 0:02:56]} 3. d4 {[%clk 0:02:55]}  Bg4 {[%clk 0:02:46]} 4. Be2 {[%clk 0:02:45]}  e6 {[%clk 0:02:45]} 5. c3 {[%clk 0:02:44]}  Nc6 {[%clk 0:02:45]} 6. Nbd2 {[%clk 0:02:35]}  Nf6 {[%clk 0:02:44]} 7. O-O {[%clk 0:02:22]}  a6 {[%clk 0:02:44]} 8. h3 {[%clk 0:01:49]}  Bf5 {[%clk 0:02:42]} 9. Nh4 {[%clk 0:01:46]}  Bg6 {[%clk 0:02:41]} 10. Nxg6 {[%clk 0:01:43]}  hxg6 {[%clk 0:02:42]} 11. Nf3 {[%clk 0:01:40]}  c4 {[%clk 0:02:37]} 12. a4 {[%clk 0:01:28]}  b5 {[%clk 0:02:36]} 13. b4 {[%clk 0:01:26]}  Bd6 {[%clk 0:02:32]} 14. Nd2 {[%clk 0:01:20]}  Bc7 {[%clk 0:02:28]} 15. Re1 {[%clk 0:01:16]}  Qd6 {[%clk 0:02:26]} 16. Nf1 {[%clk 0:01:12]}  Rb8 {[%clk 0:02:24]} 17. axb5 {[%clk 0:01:08]}  axb5 {[%clk 0:02:24]} 18. Bf3 {[%clk 0:01:06]}  Ne4 {[%clk 0:02:23]} 19. Bxe4 {[%clk 0:01:03]}  dxe4 {[%clk 0:02:23]} 20. f3 {[%clk 0:01:04]}  exf3 {[%clk 0:02:10]} 21. Qxf3 {[%clk 0:01:05]}  Rh5 {[%clk 0:01:51]} 22. e4 {[%clk 0:01:03]}  Nxd4 {[%clk 0:01:39]} 23. cxd4 {[%clk 0:01:02]}  Qxd4+ {[%clk 0:01:40]} 24. Be3 {[%clk 0:01:02]}  Qc3 {[%clk 0:01:40]} 25. Red1 {[%clk 0:00:48]}  Qxb4 {[%clk 0:01:29]} 26. Ra7 {[%clk 0:00:47]}  Rc8 {[%clk 0:01:16]} 27. e5 {[%clk 0:00:45]}  Rxe5 {[%clk 0:00:12]} 28. Qc6+ {[%clk 0:00:37]}  Kf8 {[%clk 0:00:12]} 29. Qd7 {[%clk 0:00:32]}  Rxe3 {[%clk 0:00:06]} 1-0


[Site "https://www.chess.com"]

[Event "Titled Tuesday Blitz June 20 Late 2023"]
[White "Gerbelli Neto, Eduardo"]
[Black "Shuvalov, Evgenij"]
[WhiteFideId "2103281"]
[BlackFideId "4187237"]
[WhiteElo "2178"]
[BlackElo "2080"]
[Result "1/2-1/2"]
[Round "3"]
[TimeControl "180+2"]
[Date "2023.06.20"]
[WhiteClock "0:00:30"]
[BlackClock "0:00:35"]
[Board "160"]

1. e4 {[%clk 0:03:00]}  e6 {[%clk 0:02:54]} 2. d4 {[%clk 0:03:00]}  d5 {[%clk 0:02:52]} 3. Nc3 {[%clk 0:03:00]}  Bb4 {[%clk 0:02:51]} 4. Ne2 {[%clk 0:02:59]}  Nc6 {[%clk 0:02:50]} 5. a3 {[%clk 0:02:58]}  Ba5 {[%clk 0:02:49]} 6. b4 {[%clk 0:02:56]}  Bb6 {[%clk 0:02:49]} 7. Be3 {[%clk 0:02:57]}  dxe4 {[%clk 0:02:32]} 8. Nxe4 {[%clk 0:02:57]}  e5 {[%clk 0:02:32]} 9. d5 {[%clk 0:02:44]}  Bxe3 {[%clk 0:02:24]} 10. fxe3 {[%clk 0:02:27]}  Nce7 {[%clk 0:02:23]} 11. c4 {[%clk 0:02:24]}  Nf5 {[%clk 0:02:20]} 12. Qd2 {[%clk 0:02:16]}  Nf6 {[%clk 0:02:20]} 13. N2g3 {[%clk 0:02:00]}  Nxg3 {[%clk 0:02:13]} 14. Nxg3 {[%clk 0:02:01]}  O-O {[%clk 0:02:12]} 15. Be2 {[%clk 0:01:54]}  Bg4 {[%clk 0:01:55]} 16. O-O {[%clk 0:01:47]}  Bxe2 {[%clk 0:01:52]} 17. Qxe2 {[%clk 0:01:48]}  c6 {[%clk 0:01:47]} 18. e4 {[%clk 0:01:48]}  cxd5 {[%clk 0:01:46]} 19. exd5 {[%clk 0:01:46]}  Re8 {[%clk 0:01:46]} 20. Ne4 {[%clk 0:01:37]}  Nxe4 {[%clk 0:01:45]} 21. Qxe4 {[%clk 0:01:38]}  b6 {[%clk 0:01:40]} 22. c5 {[%clk 0:01:37]}  bxc5 {[%clk 0:01:40]} 23. bxc5 {[%clk 0:01:37]}  Qa5 {[%clk 0:01:39]} 24. c6 {[%clk 0:01:25]}  Rad8 {[%clk 0:01:37]} 25. Rad1 {[%clk 0:01:21]}  Qxa3 {[%clk 0:01:33]} 26. Qf5 {[%clk 0:01:16]}  f6 {[%clk 0:01:28]} 27. c7 {[%clk 0:01:04]}  Qc5+ {[%clk 0:01:27]} 28. Kh1 {[%clk 0:01:03]}  Qxc7 {[%clk 0:01:27]} 29. Rc1 {[%clk 0:01:02]}  Qd7 {[%clk 0:01:25]} 30. Qxd7 {[%clk 0:01:01]}  Rxd7 {[%clk 0:01:26]} 31. Rfd1 {[%clk 0:01:01]}  Red8 {[%clk 0:01:25]} 32. Rc5 {[%clk 0:01:02]}  Kf7 {[%clk 0:01:25]} 33. Kg1 {[%clk 0:01:01]}  f5 {[%clk 0:01:19]} 34. Kf2 {[%clk 0:01:00]}  Kf6 {[%clk 0:01:18]} 35. h4 {[%clk 0:00:59]}  e4 {[%clk 0:01:14]} 36. Ke3 {[%clk 0:00:53]}  Ke5 {[%clk 0:01:12]} 37. Ra5 {[%clk 0:00:47]}  Rxd5 {[%clk 0:01:09]} 38. Rdxd5+ {[%clk 0:00:47]}  Rxd5 {[%clk 0:01:10]} 39. Rxa7 {[%clk 0:00:48]}  Rd3+ {[%clk 0:01:04]} 40. Ke2 {[%clk 0:00:48]}  Kf6 {[%clk 0:01:04]} 41. Ra6+ {[%clk 0:00:37]}  Ke7 {[%clk 0:01:02]} 42. g4 {[%clk 0:00:33]}  Rd6 {[%clk 0:00:55]} 43. Ra7+ {[%clk 0:00:31]}  Rd7 {[%clk 0:00:55]} 44. Ra5 {[%clk 0:00:31]}  fxg4 {[%clk 0:00:53]} 45. Rg5 {[%clk 0:00:28]}  Kf6 {[%clk 0:00:51]} 46. Rxg4 {[%clk 0:00:28]}  Re7 {[%clk 0:00:51]} 47. Ke3 {[%clk 0:00:28]}  g6 {[%clk 0:00:51]} 48. Rf4+ {[%clk 0:00:27]}  Kg7 {[%clk 0:00:51]} 49. Rxe4 {[%clk 0:00:27]}  Rxe4+ {[%clk 0:00:51]} 50. Kxe4 {[%clk 0:00:27]}  Kh6 {[%clk 0:00:51]} 51. Kf4 {[%clk 0:00:28]}  Kh5 {[%clk 0:00:50]} 52. Kg3 {[%clk 0:00:28]}  Kh6 {[%clk 0:00:46]} 53. Kg4 {[%clk 0:00:28]}  Kg7 {[%clk 0:00:38]} 54. h5 {[%clk 0:00:28]}  Kf6 {[%clk 0:00:35]} 55. hxg6 {[%clk 0:00:28]}  hxg6 {[%clk 0:00:35]} 56. Kf4 {[%clk 0:00:28]}  Ke6 {[%clk 0:00:35]} 57. Kg5 {[%clk 0:00:28]}  Kf7 {[%clk 0:00:35]} 58. Kg4 {[%clk 0:00:28]}  Kf6 {[%clk 0:00:35]} 59. Kf4 {[%clk 0:00:29]}  g5+ {[%clk 0:00:35]} 60. Kg4 {[%clk 0:00:29]}  Kg6 {[%clk 0:00:35]} 61. Kg3 {[%clk 0:00:29]}  Kg7 {[%clk 0:00:35]} 62. Kg4 {[%clk 0:00:30]}  Kg8 {[%clk 0:00:35]} 63. Kxg5 {[%clk 0:00:30]} 1/2-1/2


[Site "https://www.chess.com"]

[Event "Titled Tuesday Blitz June 20 Late 2023"]
[White "Romero Ruscalleda, Josep"]
[Black "Krishnakumar, Sriram"]
[WhiteFideId "2231859"]
[BlackFideId "30915856"]
[WhiteElo "2183"]
[BlackElo "2457"]
[Result "0-1"]
[Round "3"]
[TimeControl "180+2"]
[Date "2023.06.20"]
[WhiteClock "0:01:12"]
[BlackClock "0:01:22"]
[Board "162"]

1. e4 {[%clk 0:03:00]}  e5 {[%clk 0:02:59]} 2. Nf3 {[%clk 0:03:00]}  Nc6 {[%clk 0:02:59]} 3. Bc4 {[%clk 0:03:00]}  Bc5 {[%clk 0:02:59]} 4. c3 {[%clk 0:03:01]}  Nf6 {[%clk 0:02:59]} 5. d4 {[%clk 0:03:01]}  exd4 {[%clk 0:03:00]} 6. e5 {[%clk 0:03:01]}  d5 {[%clk 0:02:59]} 7. Bb5 {[%clk 0:03:01]}  Ne4 {[%clk 0:02:59]} 8. Nxd4 {[%clk 0:03:02]}  Bd7 {[%clk 0:02:55]} 9. Bxc6 {[%clk 0:03:01]}  Bxc6 {[%clk 0:02:54]} 10. O-O {[%clk 0:03:02]}  Bd7 {[%clk 0:02:51]} 11. Be3 {[%clk 0:03:00]}  O-O {[%clk 0:02:49]} 12. Nd2 {[%clk 0:03:00]}  Nxd2 {[%clk 0:02:48]} 13. Qxd2 {[%clk 0:03:00]}  Bb6 {[%clk 0:02:44]} 14. Bg5 {[%clk 0:02:56]}  Qe8 {[%clk 0:02:41]} 15. Rfe1 {[%clk 0:02:53]}  c5 {[%clk 0:02:41]} 16. Bf6 {[%clk 0:02:50]}  h6 {[%clk 0:02:27]} 17. Qf4 {[%clk 0:02:42]}  Kh7 {[%clk 0:02:18]} 18. Bxg7 {[%clk 0:02:01]}  Kxg7 {[%clk 0:02:15]} 19. Qf6+ {[%clk 0:02:01]}  Kh7 {[%clk 0:02:13]} 20. Nf5 {[%clk 0:01:57]}  Bxf5 {[%clk 0:02:02]} 21. Qxf5+ {[%clk 0:01:57]}  Kg8 {[%clk 0:01:57]} 22. Re3 {[%clk 0:01:56]}  Qe6 {[%clk 0:01:55]} 23. Rg3+ {[%clk 0:01:53]}  Kh8 {[%clk 0:01:55]} 24. Qf4 {[%clk 0:01:50]}  Rg8 {[%clk 0:01:51]} 25. Rh3 {[%clk 0:01:47]}  Qxh3 {[%clk 0:01:41]} 26. Qf6+ {[%clk 0:01:44]}  Rg7 {[%clk 0:01:41]} 27. Qxg7+ {[%clk 0:01:44]}  Kxg7 {[%clk 0:01:41]} 28. gxh3 {[%clk 0:01:44]}  Re8 {[%clk 0:01:39]} 29. f4 {[%clk 0:01:44]}  f6 {[%clk 0:01:38]} 30. exf6+ {[%clk 0:01:41]}  Kxf6 {[%clk 0:01:39]} 31. Kf2 {[%clk 0:01:40]}  d4 {[%clk 0:01:38]} 32. c4 {[%clk 0:01:29]}  Ba5 {[%clk 0:01:37]} 33. Rd1 {[%clk 0:01:23]}  Kf5 {[%clk 0:01:37]} 34. a3 {[%clk 0:01:20]}  Re4 {[%clk 0:01:29]} 35. Rg1 {[%clk 0:01:15]}  Rxf4+ {[%clk 0:01:27]} 36. Ke2 {[%clk 0:01:15]}  Re4+ {[%clk 0:01:26]} 37. Kd3 {[%clk 0:01:16]}  Re3+ {[%clk 0:01:25]} 38. Kc2 {[%clk 0:01:16]}  Re2+ {[%clk 0:01:25]} 39. Kc1 {[%clk 0:01:15]}  d3 {[%clk 0:01:24]} 40. Rg8 {[%clk 0:01:14]}  d2+ {[%clk 0:01:23]} 41. Kc2 {[%clk 0:01:14]}  Re1 {[%clk 0:01:23]} 42. Rf8+ {[%clk 0:01:14]}  Kg6 {[%clk 0:01:22]} 43. Rg8+ {[%clk 0:01:12]}  Kf7 {[%clk 0:01:22]} 0-1


[Site "https://www.chess.com"]

[Event "Titled Tuesday Blitz June 20 Late 2023"]
[White "Yurasova, Daria"]
[Black "Vifleemskaia, Svetlana"]
[WhiteFideId "34146919"]
[BlackFideId "4129490"]
[WhiteElo "2109"]
[BlackElo "1930"]
[Result "1-0"]
[Round "3"]
[TimeControl "180+2"]
[Date "2023.06.20"]
[WhiteClock "0:00:02"]
[BlackClock "0:00:00"]
[Board "163"]

1. e4 {[%clk 0:03:00]}  e5 {[%clk 0:02:57]} 2. Nf3 {[%clk 0:02:59]}  Nc6 {[%clk 0:02:57]} 3. d3 {[%clk 0:02:54]}  d5 {[%clk 0:02:54]} 4. Be2 {[%clk 0:02:50]}  h6 {[%clk 0:02:50]} 5. O-O {[%clk 0:02:46]}  Nf6 {[%clk 0:02:50]} 6. Nbd2 {[%clk 0:02:43]}  a5 {[%clk 0:02:47]} 7. c3 {[%clk 0:02:42]}  a4 {[%clk 0:02:46]} 8. Re1 {[%clk 0:02:38]}  Be7 {[%clk 0:02:42]} 9. Bf1 {[%clk 0:02:32]}  O-O {[%clk 0:02:40]} 10. exd5 {[%clk 0:02:30]}  Qxd5 {[%clk 0:02:34]} 11. Nc4 {[%clk 0:02:23]}  e4 {[%clk 0:02:18]} 12. dxe4 {[%clk 0:02:23]}  Qxd1 {[%clk 0:02:16]} 13. Rxd1 {[%clk 0:02:24]}  Nxe4 {[%clk 0:02:16]} 14. Bf4 {[%clk 0:02:24]}  a3 {[%clk 0:01:55]} 15. Nxa3 {[%clk 0:02:03]}  Bxa3 {[%clk 0:01:23]} 16. bxa3 {[%clk 0:02:04]}  Rxa3 {[%clk 0:01:14]} 17. Bxc7 {[%clk 0:01:49]}  Rxc3 {[%clk 0:00:55]} 18. Ne5 {[%clk 0:01:32]}  Be6 {[%clk 0:00:47]} 19. Nxc6 {[%clk 0:01:13]}  Rxc6 {[%clk 0:00:46]} 20. Be5 {[%clk 0:01:13]}  Nc3 {[%clk 0:00:42]} 21. Rd2 {[%clk 0:00:47]}  Ra8 {[%clk 0:00:34]} 22. a3 {[%clk 0:00:46]}  Nd5 {[%clk 0:00:27]} 23. h3 {[%clk 0:00:39]}  f6 {[%clk 0:00:22]} 24. Bd4 {[%clk 0:00:39]}  Kf7 {[%clk 0:00:21]} 25. Bb5 {[%clk 0:00:39]}  Rc7 {[%clk 0:00:18]} 26. Rd3 {[%clk 0:00:17]}  Rac8 {[%clk 0:00:18]} 27. a4 {[%clk 0:00:15]}  Rc1+ {[%clk 0:00:17]} 28. Rxc1 {[%clk 0:00:16]}  Rxc1+ {[%clk 0:00:17]} 29. Kh2 {[%clk 0:00:17]}  Rc2 {[%clk 0:00:17]} 30. Kg3 {[%clk 0:00:15]}  Nb4 {[%clk 0:00:15]} 31. Re3 {[%clk 0:00:15]}  Nc6 {[%clk 0:00:14]} 32. Bb6 {[%clk 0:00:14]}  Ne5 {[%clk 0:00:12]} 33. f4 {[%clk 0:00:08]}  Nc4 {[%clk 0:00:10]} 34. Bxc4 {[%clk 0:00:05]}  Rxc4 {[%clk 0:00:09]} 35. a5 {[%clk 0:00:05]}  g5 {[%clk 0:00:07]} 36. fxg5 {[%clk 0:00:05]}  hxg5 {[%clk 0:00:08]} 37. Rd3 {[%clk 0:00:05]}  Rc2 {[%clk 0:00:06]} 38. Rd8 {[%clk 0:00:03]}  Kg6 {[%clk 0:00:02]} 39. Rd6 {[%clk 0:00:03]}  Kf5 {[%clk 0:00:00]} 40. Rd3 {[%clk 0:00:02]} 1-0


[Site "https://www.chess.com"]

[Event "Titled Tuesday Blitz June 20 Late 2023"]
[White "Ardila, Oscar Humberto"]
[Black "dodoucb"]
[WhiteFideId "4404742"]
[WhiteElo "1912"]
[BlackElo "2400"]
[Result "0-1"]
[Round "3"]
[TimeControl "180+2"]
[Date "2023.06.20"]
[WhiteClock "0:00:45"]
[BlackClock "0:00:21"]
[Board "165"]

1. d4 {[%clk 0:02:55]}  d5 {[%clk 0:02:59]} 2. c4 {[%clk 0:02:55]}  c6 {[%clk 0:03:00]} 3. cxd5 {[%clk 0:02:55]}  cxd5 {[%clk 0:02:59]} 4. Nc3 {[%clk 0:02:56]}  Nf6 {[%clk 0:03:00]} 5. Nf3 {[%clk 0:02:56]}  Nc6 {[%clk 0:03:00]} 6. Bf4 {[%clk 0:02:56]}  Bf5 {[%clk 0:02:53]} 7. e3 {[%clk 0:02:56]}  e6 {[%clk 0:02:51]} 8. Be2 {[%clk 0:02:54]}  Bd6 {[%clk 0:02:50]} 9. Bxd6 {[%clk 0:02:54]}  Qxd6 {[%clk 0:02:51]} 10. O-O {[%clk 0:02:54]}  O-O {[%clk 0:02:52]} 11. Rc1 {[%clk 0:02:54]}  Rfc8 {[%clk 0:02:52]} 12. a3 {[%clk 0:02:53]}  h6 {[%clk 0:02:44]} 13. Na4 {[%clk 0:02:52]}  b6 {[%clk 0:02:42]} 14. Nc3 {[%clk 0:02:50]}  a6 {[%clk 0:02:41]} 15. Qb3 {[%clk 0:02:48]}  Na5 {[%clk 0:02:39]} 16. Qd1 {[%clk 0:02:33]}  Nd7 {[%clk 0:02:25]} 17. b4 {[%clk 0:02:26]}  Nc4 {[%clk 0:02:18]} 18. Bxc4 {[%clk 0:02:26]}  Rxc4 {[%clk 0:02:18]} 19. Nd2 {[%clk 0:02:26]}  Rc7 {[%clk 0:02:17]} 20. Nb3 {[%clk 0:02:07]}  Rac8 {[%clk 0:02:12]} 21. Qd2 {[%clk 0:02:07]}  Nf6 {[%clk 0:01:28]} 22. f3 {[%clk 0:02:04]}  Kh7 {[%clk 0:01:18]} 23. Rfe1 {[%clk 0:01:54]}  Bg6 {[%clk 0:01:16]} 24. Ne2 {[%clk 0:01:52]}  Rc2 {[%clk 0:01:15]} 25. Rxc2 {[%clk 0:01:38]}  Rxc2 {[%clk 0:01:16]} 26. Qd1 {[%clk 0:01:39]}  Qc6 {[%clk 0:01:12]} 27. Nf4 {[%clk 0:01:36]}  Bf5 {[%clk 0:01:12]} 28. Nc1 {[%clk 0:01:21]}  Qc3 {[%clk 0:00:51]} 29. Ncd3 {[%clk 0:01:19]}  Rd2 {[%clk 0:00:45]} 30. Qb1 {[%clk 0:01:14]}  Bxd3 {[%clk 0:00:42]} 31. Nxd3 {[%clk 0:01:14]}  Qxd3 {[%clk 0:00:42]} 32. Qxd3+ {[%clk 0:01:14]}  Rxd3 {[%clk 0:00:42]} 33. Kf2 {[%clk 0:01:15]}  Rxa3 {[%clk 0:00:42]} 34. Rc1 {[%clk 0:01:15]}  a5 {[%clk 0:00:41]} 35. bxa5 {[%clk 0:01:15]}  bxa5 {[%clk 0:00:42]} 36. Rc7 {[%clk 0:01:15]}  Ra2+ {[%clk 0:00:42]} 37. Kg3 {[%clk 0:01:15]}  Kg6 {[%clk 0:00:41]} 38. h4 {[%clk 0:01:12]}  a4 {[%clk 0:00:40]} 39. Ra7 {[%clk 0:01:12]}  a3 {[%clk 0:00:40]} 40. Kh3 {[%clk 0:01:11]}  h5 {[%clk 0:00:38]} 41. g4 {[%clk 0:01:08]}  hxg4+ {[%clk 0:00:32]} 42. fxg4 {[%clk 0:01:09]}  Ne4 {[%clk 0:00:32]} 43. g5 {[%clk 0:00:45]}  Ra1 {[%clk 0:00:23]} 44. Kg4 {[%clk 0:00:45]}  f5+ {[%clk 0:00:20]} 45. gxf6 {[%clk 0:00:45]}  Nxf6+ {[%clk 0:00:18]} 46. Kf4 {[%clk 0:00:46]}  a2 {[%clk 0:00:18]} 47. Ke5 {[%clk 0:00:46]}  Re1 {[%clk 0:00:18]} 48. Rxa2 {[%clk 0:00:45]}  Rxe3+ {[%clk 0:00:19]} 49. Kd6 {[%clk 0:00:45]}  Re4 {[%clk 0:00:18]} 50. Kc5 {[%clk 0:00:45]}  Rxh4 {[%clk 0:00:18]} 51. Rg2+ {[%clk 0:00:45]}  Rg4 {[%clk 0:00:18]} 52. Rh2 {[%clk 0:00:45]}  Kf5 {[%clk 0:00:18]} 53. Rf2+ {[%clk 0:00:45]}  Rf4 {[%clk 0:00:18]} 54. Rg2 {[%clk 0:00:45]}  g5 {[%clk 0:00:19]} 55. Ra2 {[%clk 0:00:45]}  Ne4+ {[%clk 0:00:19]} 56. Kc6 {[%clk 0:00:45]}  g4 {[%clk 0:00:20]} 57. Ra8 {[%clk 0:00:44]}  g3 {[%clk 0:00:20]} 58. Rf8+ {[%clk 0:00:45]}  Kg4 {[%clk 0:00:21]} 59. Rg8+ {[%clk 0:00:45]}  Kf3 {[%clk 0:00:21]} 60. Kd7 {[%clk 0:00:45]}  Nf6+ {[%clk 0:00:20]} 61. Kxe6 {[%clk 0:00:45]}  Nxg8 {[%clk 0:00:20]} 62. Kxd5 {[%clk 0:00:45]}  g2 {[%clk 0:00:21]} 0-1


[Site "https://www.chess.com"]

[Event "Titled Tuesday Blitz June 20 Late 2023"]
[White "i_like_explosions"]
[Black "Sarkar, Justin"]
[BlackFideId "2010011"]
[WhiteElo "2400"]
[BlackElo "2151"]
[Result "1-0"]
[Round "3"]
[TimeControl "180+2"]
[Date "2023.06.20"]
[WhiteClock "0:01:23"]
[BlackClock "0:00:00"]
[Board "166"]

1. d4 {[%clk 0:03:00]}  Nf6 {[%clk 0:02:55]} 2. Bg5 {[%clk 0:02:59]}  d5 {[%clk 0:02:38]} 3. Bxf6 {[%clk 0:02:58]}  exf6 {[%clk 0:02:32]} 4. e3 {[%clk 0:02:58]}  c6 {[%clk 0:02:26]} 5. c4 {[%clk 0:02:58]}  dxc4 {[%clk 0:01:53]} 6. Bxc4 {[%clk 0:02:59]}  Bd6 {[%clk 0:01:51]} 7. Nc3 {[%clk 0:02:59]}  O-O {[%clk 0:01:49]} 8. Nf3 {[%clk 0:02:58]}  f5 {[%clk 0:01:45]} 9. O-O {[%clk 0:02:57]}  Nd7 {[%clk 0:01:44]} 10. a3 {[%clk 0:02:57]}  Nf6 {[%clk 0:01:35]} 11. b4 {[%clk 0:02:56]}  Ne4 {[%clk 0:01:31]} 12. Qb3 {[%clk 0:02:46]}  Qe7 {[%clk 0:01:28]} 13. Nxe4 {[%clk 0:02:42]}  fxe4 {[%clk 0:01:27]} 14. Nd2 {[%clk 0:02:41]}  b5 {[%clk 0:01:22]} 15. Be2 {[%clk 0:02:40]}  a5 {[%clk 0:01:22]} 16. bxa5 {[%clk 0:02:38]}  Rxa5 {[%clk 0:01:21]} 17. Rfc1 {[%clk 0:02:37]}  Be6 {[%clk 0:01:01]} 18. Qb1 {[%clk 0:02:33]}  Bd5 {[%clk 0:00:55]} 19. Nb3 {[%clk 0:02:13]}  Rxa3 {[%clk 0:00:53]} 20. Nc5 {[%clk 0:02:10]}  Rfa8 {[%clk 0:00:50]} 21. Rxa3 {[%clk 0:02:08]}  Rxa3 {[%clk 0:00:50]} 22. Qb4 {[%clk 0:02:04]}  Ra2 {[%clk 0:00:47]} 23. Bf1 {[%clk 0:02:00]}  f5 {[%clk 0:00:28]} 24. g3 {[%clk 0:01:59]}  h5 {[%clk 0:00:24]} 25. Qc3 {[%clk 0:01:51]}  h4 {[%clk 0:00:21]} 26. Ra1 {[%clk 0:01:51]}  hxg3 {[%clk 0:00:17]} 27. hxg3 {[%clk 0:01:50]}  Qa7 {[%clk 0:00:16]} 28. Rxa2 {[%clk 0:01:47]}  Qxa2 {[%clk 0:00:16]} 29. Qb4 {[%clk 0:01:47]}  Kf7 {[%clk 0:00:11]} 30. Bh3 {[%clk 0:01:44]}  g6 {[%clk 0:00:10]} 31. Bf1 {[%clk 0:01:43]}  Qa7 {[%clk 0:00:08]} 32. Qc3 {[%clk 0:01:42]}  Qb6 {[%clk 0:00:05]} 33. Qb4 {[%clk 0:01:41]}  Qc7 {[%clk 0:00:04]} 34. Qa3 {[%clk 0:01:40]}  Qb6 {[%clk 0:00:03]} 35. Qb4 {[%clk 0:01:32]}  Bxc5 {[%clk 0:00:03]} 36. dxc5 {[%clk 0:01:32]}  Qa7 {[%clk 0:00:03]} 37. Qc3 {[%clk 0:01:31]}  Qe7 {[%clk 0:00:02]} 38. Qd4 {[%clk 0:01:30]}  Qf6 {[%clk 0:00:02]} 39. Qb4 {[%clk 0:01:29]}  Qa1 {[%clk 0:00:02]} 40. Kg2 {[%clk 0:01:29]}  Ke6 {[%clk 0:00:02]} 41. Be2 {[%clk 0:01:27]}  g5 {[%clk 0:00:02]} 42. Bh5 {[%clk 0:01:24]}  Kf6 {[%clk 0:00:02]} 43. Be8 {[%clk 0:01:24]}  Ke7 {[%clk 0:00:02]} 44. Bg6 {[%clk 0:01:23]}  Kf6 {[%clk 0:00:01]} 45. Be8 {[%clk 0:01:23]}  Qe5 {[%clk 0:00:00]} 46. Bh5 {[%clk 0:01:23]} 1-0


[Site "https://www.chess.com"]